Cogmind - Beta 11 X8 @@@ ROGUE MODE // 2021.11.10 @ 09:13:56 Player: ZEROAFFEX Result: Destroyed by X-57 Shotgunner with Shotgun Performance ------------- Evolutions (2) 1000 Regions Visited (6) 1200 Robots Destroyed (106) 530 Value Destroyed (3020) 3020 Prototype IDs (28) 560 Alien Tech Used (0) 0 Bonus (591) 591 TOTAL SCORE: 6901 Bonus ------- High Alert Combat Kills 256 Follower Combat Kills 35 Aligned with FarCom 300 Cogmind --------- Core Integrity 0/550 Matter 181/300 Energy 100/100 System Corruption 3% Temperature Cool (27) Movement Core (1350) Ox26 Location -8/Storage Parts ------- > --- POWER (1) -------- (None) > --- PROPULSION (3) --- (None) > --- UTILITY (4) ------ Huge Storage Unit Advanced Targeting Computer System Shield > --- WEAPON (3) ------- (None) > --- INVENTORY (25) --- Light Nuclear Core Light Treads Improved Cooling System High-capacity Storage Unit Medium Matter Pod (100) Trap Scanner Advanced Visual Processing Unit Experimental Sensor Array Improved Terrain Scanner Kinecellerator Transmission Jammer Improved Weapon Shielding Skeleton Box Spread Laser Ion Cannon Minigun Rocket Launcher Peak State ------------ > --- POWER ------------ Light Nuclear Core > --- PROPULSION ------- Light Treads Armored Treads Compact Wheel > --- UTILITY ---------- Huge Storage Unit Advanced Targeting Computer Improved Weapon Shielding System Shield > --- WEAPON ----------- Precision Beam Rifle Enhanced Autogun Gauss Rifle > --- INVENTORY -------- Light Nuclear Core Light Treads Light Treads Light Treads Light Treads Wheel Wheel Wheel Improved Cooling System High-capacity Storage Unit Medium Matter Pod Trap Scanner Advanced Visual Processing Unit Experimental Sensor Array Improved Terrain Scanner Kinecellerator Kinecellerator Skeleton Box Spread Laser Heavy Particle Gun Ion Cannon Minigun Rocket Launcher Missile Launcher [Rating: 36] Favorites ----------- Power Light Nuclear Core Engine Ion Engine Power Core Light Nuclear Core Propulsion Light Treads Treads Light Treads Wheel Wheel Utility Advanced Targeting Computer Device Improved Terrain Scanner Storage High-capacity Storage Unit Processor Advanced Targeting Computer Hackware System Shield Protection Core Shielding Weapon Autogun Energy Gun Spread Laser Energy Cannon Ion Cannon Ballistic Gun Autogun Launcher Rocket Launcher Build | -11 -10 -10 -10 -9 -8 -8 ------- Run | Scr Mat Min Exi Min Mat Sto Slots Evolved 4 | . . . . . 4 . Power . | . . . . . . . Propulsion 1 | . . . . . 1 . Utility 2 | . . . . . 2 . Weapon 1 | . . . . . 1 . Parts Attached 165 | 6 19 3 . 5 47 85 Power 13 | 1 2 . . 1 5 4 Engine 6 | 1 2 . . 1 2 . Core 7 | . . . . . 3 4 Reactor . | . . . . . . . Propulsion 72 | 2 5 2 . 2 20 41 Treads 39 | 1 3 . . 2 8 25 Leg . | . . . . . . . Wheel 33 | 1 2 2 . . 12 16 Hover . | . . . . . . . Flight . | . . . . . . . Utility 38 | 1 5 . . . 8 24 Device 16 | . . . . . 2 14 Storage 5 | 1 2 . . . 2 . Processor 1 | . . . . . 1 . Hackware 1 | . . . . . . 1 Protection 15 | . 3 . . . 3 9 Artifact . | . . . . . . . Weapon 42 | 2 7 1 . 2 14 16 Energy Gun 12 | 2 4 . . 1 1 4 Energy Cannon 1 | . . . . . 1 . Ballistic Gun 23 | . 2 1 . . 11 9 Ballistic Cannon . | . . . . . . . Launcher 6 | . 1 . . 1 1 3 Special Weapon . | . . . . . . . Impact Weapon . | . . . . . . . Slashing Weapon . | . . . . . . . Piercing Weapon . | . . . . . . . Special Melee Weapon . | . . . . . . . Unidentified Prototypes 5 | . . . . . 2 3 Parts Lost 32 | . 2 . . 3 7 20 Power 4 | . . . . 1 . 3 Propulsion 16 | . 2 . . 2 4 8 Utility 3 | . . . . . 1 2 Weapon 9 | . . . . . 2 7 Highest Loss Streak 16 | . 1 . . 3 2 16 Average Slot Usage (%) 99 | . 99 100 100 98 98 99 Engine 4 | . 14 14 14 14 2 . Core 5 | . . . . . 6 8 Treads 13 | . 13 7 . 12 12 17 Wheel 13 | . 14 20 28 14 14 9 Device 6 | . . . . . 9 7 Storage 10 | . 14 14 14 14 8 9 Processor 6 | . . . . . 7 9 Hackware 1 | . . . . . . 5 Protection 9 | . 13 14 14 14 10 5 Energy Gun 4 | . 13 . . 5 4 2 Ballistic Gun 20 | . 12 20 28 19 20 22 Launcher 1 | . 1 7 . 3 1 1 Naked Turns . | . . . . . . . Heaviest Build 108 | 14 53 53 52 53 105 108 Greatest Support 60 | 16 32 26 20 40 60 60 Greatest Overweight (x) 10 | . 3 3 2 2 6 10 Average Overweight (x) 2 | . 1 2 2 1 2 3 Largest Inventory Capacity 25 | 8 20 20 20 20 25 25 Average Capacity 20 | 7 11 20 20 20 20 25 Most Carried 25 | 4 14 19 20 20 24 25 Average Carried 19 | 2 9 16 19 18 19 24 Final Capacity 25 | 8 20 20 20 20 25 25 Final Carried 24 | 4 14 19 20 17 24 17 Class Distribution -------------------- 49% | Scavenger-Skirmisher 27% | Mutant 9% | Scavenger-Gunner 4% | Commander-Skirmisher 3% | Skirmisher 3% | Commander-Mutant Dominant Class ---------------- Mutant | -10/Materials Mutant | -10/Mines Mutant | -10/Exiles Mutant | -9/Mines Scavenger-Skirmisher | -8/Materials Scavenger-Skirmisher | -8/Storage Resources | -11 -10 -10 -10 -9 -8 -8 ----------- Run | Scr Mat Min Exi Min Mat Sto Matter Collected 3348 | 232 179 70 . . 1253 1614 Remotely . | . . . . . . . Salvage Created 3910 | . 512 47 . . 1681 1670 Parts 239 | . 31 6 . 4 94 104 Haulers Intercepted 9 | . 1 . . . 3 5 Recyclers Shooed 2 | . 1 . . . . 1 Parts Field Recycled . | . . . . . . . Retrieved Matter . | . . . . . . . Parts Self-Destructed . | . . . . . . . Prevented . | . . . . . . . Kills | -11 -10 -10 -10 -9 -8 -8 ------- Run | Scr Mat Min Exi Min Mat Sto Combat Hostiles Destroyed 71 | . 12 . . 2 27 30 Guns 59 | . 12 . . 1 22 24 AOE 12 | . . . . 1 5 6 Classes Destroyed 13 | . 5 2 . 1 5 . Worker 8 | . . . . . 5 3 Builder 3 | . . 1 . 1 . 1 Tunneler 2 | . . 1 . . 1 . Hauler 9 | . 1 . . . 3 5 Recycler 8 | . 1 . . . 6 1 Operator 1 | . . . . . 1 . Watcher 4 | . 2 . . . 1 1 Swarmer 18 | . 6 . . . 6 6 Grunt 33 | . 6 . . . 13 14 Sentry 13 | . . . . . 5 8 Demolisher 2 | . . . . 2 . . Specialist 4 | . . . . . 2 2 Hunter 1 | . . . . . 1 . Best Kill Streak 15 | . 7 1 . 3 15 7 Combat Bots Only 7 | . 3 . . 2 7 4 Max Kills in Single Turn 3 | . 2 1 . 1 2 3 Gunslinging 1 | . 1 . . . 1 . Exploded 3 | . . . . 1 1 3 Melee . | . . . . . . . Uniques/NPCs Destroyed . | . . . . . . . Combat | -11 -10 -10 -10 -9 -8 -8 -------- Run | Scr Mat Min Exi Min Mat Sto Damage Taken 6026 | . 519 6 . 352 1770 3379 Core 720 | . 98 . . 70 167 385 Absorbed by Shields . | . . . . . . . Core Remaining (%) 66 | 100 . . . 32 . . Volleys Fired 211 | . 35 3 . 9 81 83 Largest 3 | . 2 2 . 2 3 3 Hottest 141 | . 112 46 . 88 115 141 Shots Fired 539 | . 69 6 . 14 219 231 Gun 518 | . 68 6 . 10 210 224 Cannon 3 | . . . . . 3 . Launcher 18 | . 1 . . 4 6 7 Special . | . . . . . . . Kinetic 387 | . 10 6 . 5 164 202 Thermal 134 | . 58 . . 5 49 22 Explosive 18 | . 1 . . 4 6 7 Electromagnetic . | . . . . . . . Robot Hit Streak 21 | . 7 5 . 7 21 21 Robot Miss Streak 10 | . 3 . . 5 10 3 Penetration Max . | . . . . . . . Secondary Targets 6 | . 3 . . . 2 1 Max Gunslinging Chain 1 | . 1 . . . 1 1 Shots Hit Robots 377 | . 37 5 . 11 166 158 Core Hits 221 | . 18 2 . 10 120 71 Critical Kills 1 | . . . . . 1 . Critical Parts Destroyed 1 | . . . . . 1 . Critical Strikes 6 | . 4 . . . 2 . Burn 4 | . 4 . . . . . Destroy 2 | . . . . . 2 . Melee Attacks . | . . . . . . . Impact . | . . . . . . . Slashing . | . . . . . . . Piercing . | . . . . . . . Sneak Attacks . | . . . . . . . Combat Hostiles . | . . . . . . . Follow-up Attacks . | . . . . . . . Damage Inflicted 7723 | . 552 95 . 189 3401 3486 Guns 5822 | . 552 81 . 106 2382 2701 Cannons 46 | . . . . . 46 . Explosions 1811 | . . . . 83 963 765 Melee . | . . . . . . . Ramming 44 | . . 14 . . 10 20 Kinetic 4362 | . 56 81 . 60 1784 2381 Thermal 1917 | . 496 . . 46 1055 320 Explosive 1400 | . . . . 83 552 765 Electromagnetic . | . . . . . . . Impact . | . . . . . . . Slashing . | . . . . . . . Piercing . | . . . . . . . Highest Corruption 3 | . . . . . . 3 Average Corruption 2 | . . . . . . 2 Corruption Purged . | . . . . . . . Effects 45 | . . . . . . 45 Message Errors 14 | . . . . . . 14 Matter Fused 15 | . . . . . . 15 Heat Flow Errors 5 | . . . . . . 5 Energy Discharges 2 | . . . . . . 2 Data Loss (minor) 7 | . . . . . . 7 Weapon Failures 2 | . . . . . . 2 Overload Shots . | . . . . . . . Overflow Damage 452 | . 3 . . . 287 162 Projectiles . | . . . . . . . Explosions 452 | . 3 . . . 287 162 Melee . | . . . . . . . Knockbacks . | . . . . . . . Impact . | . . . . . . . Kinetic . | . . . . . . . Secondary . | . . . . . . . Self-Inflicted Damage 467 | . 33 6 . . 294 134 Shots 7 | . 1 . . . 4 2 Rammed 6 | . . 2 . . 1 3 Targets Rammed 6 | . . 2 . . 1 3 Kicked . | . . . . . . . Crushed . | . . . . . . . Highest Temperature 402 | . 360 6 . 76 372 402 Average Temperature 122 | . 150 4 . 41 129 111 Received Heat Transfer 1539 | . 162 . . . 441 936 Effects 10 | . 5 . . . 1 4 Shutdowns 2 | . 1 . . . . 1 Interference 7 | . 4 . . . . 3 Damage (minor) 1 | . . . . . 1 . Siege Activations . | . . . . . . . Robots Corrupted . | . . . . . . . Combat Hostiles . | . . . . . . . Parts Fried . | . . . . . . . Impact Corruptions . | . . . . . . . Robots Melted . | . . . . . . . Combat Hostiles . | . . . . . . . Parts Melted 6 | . 5 . . . . 1 Heat Transferred 3404 | . 1554 . . 65 1119 666 Parts Sabotaged . | . . . . . . . Parts Stolen . | . . . . . . . Parts Stripped . | . . . . . . . Power Chain Reactions . | . . . . . . . Missiles Intercepted . | . . . . . . . Alert | -11 -10 -10 -10 -9 -8 -8 ------- Run | Scr Mat Min Exi Min Mat Sto Peak Influence 698 | . 417 10 . 30 698 682 Initial 245 | . . . . . 11 245 Average 366 | . 187 4 . 12 458 415 Maximum Alert Level 2 | . 2 . . . 2 2 Low Security (%) 23 | 100 47 100 . 100 23 . Level 1 30 | . 48 . . . 4 53 Level 2 45 | . 3 . . . 71 46 Level 3 . | . . . . . . . Level 4 . | . . . . . . . Level 5 . | . . . . . . . High Security . | . . . . . . . Max Security . | . . . . . . . Squads Dispatched 20 | . 5 . . . 8 7 Investigation 4 | . 2 . . . 1 1 Extermination . | . . . . . . . Reinforcement 12 | . 3 . . . 4 5 Assault 1 | . . . . . . 1 Garrison 3 | . . . . . 3 . Intercept . | . . . . . . . Construction Impeded 1 | . . . . . 1 . Haulers Reinforced . | . . . . . . . Active Scanning Responses . | . . . . . . . Cargo Convoy Interrupts . | . . . . . . . Stealth | -11 -10 -10 -10 -9 -8 -8 --------- Run | Scr Mat Min Exi Min Mat Sto Distress Signals 9 | . 2 . . . 5 2 Communications Jammed . | . . . . . . . Distress Signals . | . . . . . . . Times Spotted 127 | . 22 . 1 2 49 53 Peak Tracking Total 10 | . 4 . 1 2 6 10 Tactical Retreats 10 | . 1 . . . 4 5 Traps | -11 -10 -10 -10 -9 -8 -8 ------- Run | Scr Mat Min Exi Min Mat Sto Traps Triggered 3 | . 1 . . . . 2 Indirectly . | . . . . . . . Trap Hack Attempts . | . . . . . . . Triggered . | . . . . . . . Disarmed . | . . . . . . . Reprogrammed . | . . . . . . . Reused . | . . . . . . . Traps Extracted . | . . . . . . . Installed . | . . . . . . . Triggered . | . . . . . . . Exploded 1 | . . . 1 . . . Machines | -11 -10 -10 -10 -9 -8 -8 ---------- Run | Scr Mat Min Exi Min Mat Sto Machines Disabled 17 | . 1 . . . 10 6 Max in Single Turn 4 | . 1 . . . 4 1 Garrison Access 1 | . . . . . . 1 Machines Sabotaged . | . . . . . . . Garrisons Compromised . | . . . . . . . Overloaded Fab Kills . | . . . . . . . Hacking | -11 -10 -10 -10 -9 -8 -8 --------- Run | Scr Mat Min Exi Min Mat Sto Machines Accessed 22 | . 7 . 1 . 5 9 Terminals 14 | . 6 . . . 3 5 Fabricators . | . . . . . . . Repair Stations 2 | . . . . . 1 1 Recycling Units 3 | . 1 . . . . 2 Scanalyzers 1 | . . . . . 1 . Garrison Access 1 | . . . . . . 1 Total Hacks 64 | . 17 . 1 . 19 27 Successful 39 | . 14 . 1 . 14 10 Failed 25 | . 3 . . . 5 17 Catastrophic 1 | . . . . . 1 . Database Lockouts . | . . . . . . . Manual 43 | . 17 . 1 . 6 19 Terminals 42 | . 16 . . . 6 20 Fabricators . | . . . . . . . Repair Stations 14 | . . . . . 11 3 Recycling Units 4 | . 1 . . . . 3 Scanalyzers 2 | . . . . . 2 . Garrison Access 1 | . . . . . . 1 Terminal Hacks 12 | . 6 . 1 . . 5 Robot Analysis 2 | . 1 . . . . 1 Open Door 1 | . . . . . . 1 Unreport Threat 2 | . 1 . . . . 1 Locate Traps 4 | . 3 . . . . 1 Recall Investigation 1 | . . . . . . 1 Hauler Manifests 1 | . 1 . . . . . EX-Prototype ID Bank 1 | . . . 1 . . . Fabricator Hacks . | . . . . . . . Repair Station Hacks 12 | . . . . . 10 2 Scan Component 6 | . . . . . 5 1 Repair 6 | . . . . . 5 1 Recycling Unit Hacks . | . . . . . . . Scanalyzer 1 | . . . . . 1 . Insert Component 1 | . . . . . 1 . Garrison Access Hacks 1 | . . . . . . 1 Seal Access 1 | . . . . . . 1 Unauthorized Hacks 13 | . 8 . . . 3 2 Terminals 11 | . 7 . . . 3 1 Track 6 | . 6 . . . . . Assimilate 2 | . . . . . 2 . Disrupt 3 | . 1 . . . 1 1 Fabricators . | . . . . . . . Repair Stations . | . . . . . . . Recycling Units 2 | . 1 . . . . 1 Tunnel 2 | . 1 . . . . 1 Scanalyzers . | . . . . . . . Garrison Access . | . . . . . . . Data Cores Recovered . | . . . . . . . Used . | . . . . . . . Hacking Detections 14 | . 5 . . . 4 5 Full Trace Events 1 | . . . . . 1 . Feedback Events . | . . . . . . . Feedback Blocked . | . . . . . . . Robot Schematics Acquired . | . . . . . . . Robots Built . | . . . . . . . Authchips . | . . . . . . . Time . | . . . . . . . Total Robot Build Rating . | . . . . . . . Part Schematics Acquired . | . . . . . . . Parts Built . | . . . . . . . Authchips . | . . . . . . . Time . | . . . . . . . Total Part Build Rating . | . . . . . . . Parts Repaired 6 | . . . . . 5 1 Time 336 | . . . . . 298 38 Parts Recycled . | . . . . . . . Recycled Matter . | . . . . . . . Retrieved Matter . | . . . . . . . Retrieved Components . | . . . . . . . Parts Scanalyzed 1 | . . . . . 1 . Part Schematics Acquired . | . . . . . . . Parts Damaged . | . . . . . . . Bothacking | -11 -10 -10 -10 -9 -8 -8 ------------ Run | Scr Mat Min Exi Min Mat Sto Used RIF Installer . | . . . . . . . Robots Hacked . | . . . . . . . Non-combat . | . . . . . . . Combat . | . . . . . . . Robot Hacks Applied . | . . . . . . . Relay Couplers Released . | . . . . . . . Fabnet Peak Effective % . | . . . . . . . Robots Rewired . | . . . . . . . Allies Hacked . | . . . . . . . Hacks Repelled . | . . . . . . . Allies | -11 -10 -10 -10 -9 -8 -8 -------- Run | Scr Mat Min Exi Min Mat Sto Total Allies 11 | . . . . . 1 10 Largest Group 10 | . . . . . 1 10 Highest-Rated Group 173 | . . . . . 10 173 Highest-Rated Ally 29 | . . . . . 10 29 Total Orders 5 | . . . . . 1 4 STAY 2 | . . . . . . 2 ROAM 1 | . . . . . 1 . FOLLOW 1 | . . . . . . 1 AID 1 | . . . . . . 1 Ally Attacks 12 | . . . . . . 12 Total Damage 172 | . . . . . . 172 Kills 1 | . . . . . . 1 Allies Corrupted . | . . . . . . . Allies Melted . | . . . . . . . Intel | -11 -10 -10 -10 -9 -8 -8 ------- Run | Scr Mat Min Exi Min Mat Sto Robot Analysis Total 2 | . 1 . . . . 1 Derelict Logs Recovered 2 | . . 2 . . . . Drone Launches . | . . . . . . . Drone Recoveries . | . . . . . . . Exploration | -11 -10 -10 -10 -9 -8 -8 ------------- Run | Scr Mat Min Exi Min Mat Sto Turns Passed 6380 | 51 908 328 324 79 2202 2488 Spaces Moved 3185 | 40 591 243 294 40 1014 963 Core 3 | 3 . . . . . . Treads 317 | . . . . 7 53 257 Legs . | . . . . . . . Wheels 2865 | 37 591 243 294 33 961 706 Hover . | . . . . . . . Flight . | . . . . . . . Fastest Speed 50 | 50 100 105 110 110 95 116 Average Speed 140 | 96 117 127 110 132 133 178 Slowest Speed 560 | 100 145 145 110 240 243 560 Overloaded Moves . | . . . . . . . Propulsion Burnouts . | . . . . . . . Robots Hopped . | . . . . . . . Cave-ins Triggered . | . . . . . . . Exploration Rate (%) 54 | 3 92 43 72 18 69 87 Regions Visited 6 Branch Regions 4 Pre-discovered Areas 2 | . 1 . . . . 1 Known Exits Taken 1 | . . . . . 1 . Unknown Exits Taken 5 | 1 1 1 1 1 . . Scrap Searched 1 | . . 1 . . . . Spaces Dug 22 | . 10 . . . . 12 Terrain Destroyed 184 | . 10 . . 15 80 79 Melee . | . . . . . . . Projectile . | . . . . . . . AOE 184 | . 10 . . 15 80 79 Terrain Rammed . | . . . . . . . Walls Destroyed . | . . . . . . . Machines Disabled . | . . . . . . . Actions | -11 -10 -10 -10 -9 -8 -8 --------- Run | Scr Mat Min Exi Min Mat Sto Total 4698 | 49 740 255 294 53 1732 1575 Wait 991 | . 63 . . . 528 400 Move 3179 | 39 590 242 293 39 1013 963 Hop . | . . . . . . . Pick Up 77 | 4 17 4 1 . 38 13 Fast Attach 22 | 6 3 1 . . 9 3 Attach 31 | . 2 . . 3 12 14 Detach 6 | . . 1 . . 3 2 Swap 112 | . 14 2 . 2 26 68 Drop 63 | . 16 . . . 21 26 Fire 211 | . 35 3 . 9 81 83 Melee . | . . . . . . . Ram 4 | . . 2 . . 1 1 Kick . | . . . . . . . Crush 2 | . . . . . . 2 Escape Stasis . | . . . . . . . Rewire . | . . . . . . . Trap . | . . . . . . . Miscellaneous . | . . . . . . . Route ------- -11/Scrapyard -10/Materials (discovered 4 exits: [*Mat x3] / [*Min]) -10/Mines (discovered 2 exits: [*Mat] / *Exi) -10/Exiles (discovered 2 exits: [*Min x2]) -9/Mines -8/Materials (discovered 4 exits: [*Fac x3] / *Sto) -8/Storage (discovered 1 exit: [*Fac]) History --------- Turn | Location | Event 28 | -11/Scrapyard | Discovered new exit (range 15) 52 | -11/Scrapyard | Entered Materials 307 | -10/Materials | Build established: Mutant 333 | -10/Materials | Discovered new exit (range 15) 478 | -10/Materials | Discovered new exit (range 16) 552 | -10/Materials | Discovered new exit (range 16) 770 | -10/Materials | Discovered new exit (range 16) 960 | -10/Materials | Entered Mines 972 | -10/Mines | Discovered new exit (range 10) 1034 | -10/Mines | Found a damaged Exp. Sensor Array with a note attached 1037 | -10/Mines | Found Prototype Device 1237 | -10/Mines | Learned Materials trap positions 1281 | -10/Mines | Deemed a non-threat by the Exiles lab entrance 1282 | -10/Mines | Discovered new exit (range 5) 1288 | -10/Mines | Entered Exiles 1305 | -10/Exiles | Discovered new exit (range 15) 1317 | -10/Exiles | Met 8R-AWN 1336 | -10/Exiles | Met EX-HEX 1369 | -10/Exiles | Met EX-BIN 1384 | -10/Exiles | Aligned with FarCom system 1385 | -10/Exiles | Given EX-Vault access code 1414 | -10/Exiles | Opened EX-Vault 1424 | -10/Exiles | Found Skeleton Box 1447 | -10/Exiles | Warned to stay clear of 0b10 Research branches 1460 | -10/Exiles | Exiles lab attacked by MAIN.C 1599 | -10/Exiles | Discovered new exit (range 14) 1612 | -10/Exiles | Left Exiles lab with Skeleton Box 1612 | -10/Exiles | Entered Mines 1642 | -9/Mines | Assembled infested the area 1648 | -9/Mines | Discovered new exit (range 10) 1661 | -9/Mines | Core integrity fell below 50% 1689 | -9/Mines | Lost 3 parts (1p2n) 1691 | -9/Mines | Entered Materials 1691 | -8/Materials | Evolved 4 slots: Propulsion x1, Utility x2, Weapon x1 1692 | -8/Materials | Identified exit to Storage 1693 | -8/Materials | Loaded intel: 14 trap records 1693 | -8/Materials | Identified Exp. Sensor Array 2040 | -8/Materials | Build established: Scavenger-Skirmisher 2077 | -8/Materials | Garrison activated, responded to threat 2255 | -8/Materials | Destroyed 7 combat bots 2267 | -8/Materials | Discovered new exit (range 16) 2812 | -8/Materials | Discovered new exit (range 14) 3338 | -8/Materials | Repaired Broken Exp. Sensor Array 3377 | -8/Materials | Repaired Hrd. Medium Armor Plating 3404 | -8/Materials | Repaired Hcp. Storage Unit 3492 | -8/Materials | Repaired Lgt. Nuclear Core 3553 | -8/Materials | Repaired Enh. Autogun? 3604 | -8/Materials | Discovered new exit (range 15) 3893 | -8/Materials | Entered Storage 5729 | -8/Storage | Repaired Arm. Treads 5828 | -8/Storage | Assisted by bots powering up and referring to "LRC-V3" 5911 | -8/Storage | Discovered new exit (range 14) 6293 | -8/Storage | First assault squad dispatched 6315 | -8/Storage | Core integrity fell below 50% 6353 | -8/Storage | Core integrity fell below 20% 6381 | -8/Storage | Destroyed by X-57 Shotgunner with Shotgun Last Messages --------------- 06354_ K-01 Serf collects debris. 06355_ Enh. Autogun destroyed. 06355_ Transmission Jammer destroyed. 06358_ K-01 Serf collects debris. 06359_ Slug penetrates G-47 Trooper. 06361_ K-01 Serf collects debris. 06364_ Gauss Rifle destroyed. 06364_ Hvy. Particle Gun destroyed. 06365_ K-01 Serf collects debris. 06368_ Lgt. Nuclear Core destroyed. 06369_ The unstable cave ceiling collapses. 06370_ Particle Gun crushed. 06372_ K-01 Serf collects debris. 06374_ The unstable cave ceiling collapses. 06375_ K-01 Serf collects debris. 06379_ Lgt. Treads destroyed. 06379_ Arm. Treads destroyed. 06379_ K-01 Serf collects debris. 06381_ Critical hit (Burn: +37). 06381_ Lgt. Treads destroyed. Map ----- +----------------------------------------------------+ | ????????????????????????????????????#????????????? | | ??????????????????????????????#?????????????????#? | | ?????????????????????????###################?#?#?? | | ?????????????????????????# ^^ ####### | | ?????????????????????????# ^ | | ##?????????????????????### ^ | | ??????????????#????#???# ####* | | < ???????????????????????# #??# === | | ??????? ?????########??# ^ #?##+##+ | | ?????????????#!!! #??# ##### #####+#### *= | | ????"????????#!!! #??# #???# #??#% ##!""" | | ????????????##!!! #### #?### #??# ## """ | | # ?????? ????Y #?## #???# #??#= !## """ | | #??????? ?????? #??# #???# #??# !## """ | | #???? ?????????? ####+###?# ##+#### ## """ | | #??????????#??????#+# ### ## # ## | | ######????????????# + + + # ## | | ##"T ########?????# # """ # # ]! # ###### | | # #??#??# # """ # # % ######????? | | # "" """ #### ## # """ + + #?????????? | | # "" """ # T * # ###= # ? ?? ??? | | + "" " " # [%! ##### #?# #?? ??? ??? | | # === ! ###! #?????????? | | # # =[%% m[ ### #??????? ?? | | # # % # %! % # ######?????????? | | ####+######## # = @ ; # #??????????? | | # ## ########## x [% k # #########???? | | # ## # ###x % %% ; % #???? | | #### # ! + = g= % % #???? | | + !! # ^ d% # = # #?? | | # =!=!* # ^ ### t ;=% " ##" | | #####+#####d ^ #?### #%"""""" " | | ! """ ##### # "??? " # | | *** ^^""" """## # "?? ?" #??## | | ** *= ^^""" G"## # ""???" #???? | | ##########* ^ ^ """####### ???? #???? | | # # = ^ ^^^ ####?##??###????###???? | | # """ # ^""" "#?#??#???????????????? | | # """ # """ T#?#####????#?????#???? | | # """ # """ "#?# #??#???????????? | | # + ##?# ##########?????? | | + """ #+##### #??# # #?????? | | # """ # ??## ###?## #=[ #?????? | | # """ # ??## #????# #!=""""" #?????? | | # # ??# #?#?## +["][]=" #?????? | | ######?### =### #??#?# #=" [[=" #?????? | | #?????#?# + #???## # """""" #???#?# | | #???????#/ !######### #????# # #?????? | | T #??????## ????#???# #?#?## # #?#???? | | #???????###????????## ###### # #?????? | +----------------------------------------------------+ Best States ------------- Heat Dissipation 31 Energy Generation 14 Energy Capacity 250 Matter Stores 300 Matter Capacity 300 Sight Range 16 Robot Scan Range 20 Terrain Scan Range 16 Terrain Scan Density 10 Jamming Range 8 Armor Coverage 225 Core Shielding 20 Weapon Shielding 66 Evasion (%) 40 Targeting Accuracy 8 Recoil Reduction 3 Kinecelleration 30 Defensive Hacking 10 Item Schematics ----------------- None Robot Schematics ------------------ None Fabricated ------------ Nothing Alien Tech Used ----------------- None Achievements -------------- None Challenges ------------ None Game ------ Seed GravityMobileClaws Manual? 0 Play Time 01:31:02 Cumulative 80.0 hours Start 2021.11.10 @ 07:41:54 End 2021.11.10 @ 09:13:56 Sessions 1 Manual Loads 0 Difficulty Rogue Special Mode None Game No. 60 Rogue 58 Adventurer 2 Explorer 0 Win Type - Total 0 Types 0/0/0/0/0/0/0/0/0 Lore% 34 Gallery% 34 Achievement% 32 Wizard Run 0 Options --------- ASCII 0 Keyboard 0 Movement Mouse Keybinds 1 Fullscreen 1 Font 18/TerminusBold Map View 76x50 Tactical HUD 1 Map Filters NONE Filters NONE Steam 1 RUN: 5e6dd057-0092-4ff8-a783-6f35f98bcdd7